Cogmind - Beta 14 @@@ ROGUE MODE // 2024.08.15 @ 19:28:44 Player: star Result: Destroyed by JT-8HR(R) with Subdweller Beam Cannon Performance ------------- Evolutions (0) 0 Regions Visited (2) 400 Robots Destroyed (12) 60 Value Destroyed (271) 271 Prototype IDs (0) 0 Alien Tech Used (0) 0 Bonus (0) 0 TOTAL SCORE: 731 Bonus ------- None Cogmind --------- Core Integrity 0/250 Matter 300/300 Energy 155/200 System Corruption 0% Temperature Cool (9) Movement Core (450) Ox8 Location -10/Subcaves Parts ------- > --- POWER (1) -------- Subdweller Power Source > --- PROPULSION (2) --- (None) > --- UTILITY (2) ------ Large Storage Unit > --- WEAPON (2) ------- (None) > --- INVENTORY (15) --- Wheel Heat Sink Medium Storage Unit EM Pulse Gun EM Shotgun Medium Laser Assault Rifle Hammer Peak State ------------ > --- POWER ------------ Light Ion Engine > --- PROPULSION ------- Aluminum Leg Aluminum Leg > --- UTILITY ---------- Large Storage Unit Weapon Shielding > --- WEAPON ----------- EM Shotgun Beam Cannon > --- INVENTORY -------- Wheel Heat Sink Medium Storage Unit EM Pulse Gun EM Shotgun Medium Laser Beam Cannon Assault Rifle Hammer [Rating: 9] Favorites ----------- Power Light Ion Engine Engine Light Ion Engine Propulsion Aluminum Leg Leg Aluminum Leg Wheel Wheel Utility Weapon Shielding Storage Large Storage Unit Protection Weapon Shielding Weapon Beam Cannon Energy Gun EM Pulse Gun Energy Cannon Beam Cannon Ballistic Gun Light Assault Rifle Build | -11 -10 -10 ------- Run | Yrd Mat Sub Slots Evolved . | . . . Power . | . . . Propulsion . | . . . Utility . | . . . Weapon . | . . . Parts Attached 18 | 7 8 3 Power 2 | 1 . 1 Engine 2 | 1 . 1 Core . | . . . Reactor . | . . . Propulsion 5 | 4 1 . Treads . | . . . Leg 3 | 2 1 . Wheel 2 | 2 . . Hover . | . . . Flight . | . . . Utility 3 | . 3 . Device . | . . . Storage 2 | . 2 . Processor . | . . . Hackware . | . . . Protection 1 | . 1 . Artifact . | . . . Weapon 8 | 2 4 2 Energy Gun 3 | . 2 1 Energy Cannon 3 | . 2 1 Ballistic Gun 2 | 2 . . Ballistic Cannon . | . . . Launcher . | . . . Special Weapon . | . . . Impact Weapon . | . . . Slashing Weapon . | . . . Piercing Weapon . | . . . Special Melee Weapon . | . . . Unidentified Prototypes . | . . . Parts Lost 7 | . . 7 Power 1 | . . 1 Propulsion 2 | . . 2 Utility 1 | . . 1 Weapon 3 | . . 3 Highest Loss Streak 6 | . . 6 To Critical Strikes . | . . . Average Slot Usage (%) 95 | . 97 79 Engine 13 | . 14 7 Leg 27 | . 28 20 Storage 12 | . 12 14 Protection 12 | . 13 11 Energy Gun 12 | . 13 5 Energy Cannon 11 | . 10 19 Ballistic Gun 3 | . 3 . Peak Build Rating 9 | 5 9 9 Average Rating 7 | 4 7 7 On Entrance 4 | . 5 9 Naked Turns . | . . . Heaviest Build 30 | 6 30 30 Greatest Support 20 | 20 20 20 Greatest Overweight (x) 8 | . 1 8 Average Overweight (x) . | . . 1 Largest Inventory Capacity 15 | 5 15 15 Average Capacity 12 | 5 13 15 Most Carried 9 | 3 9 9 Average Carried 6 | 1 6 8 Final Capacity 15 | 5 15 15 Final Carried 9 | 3 9 8 Class Distribution -------------------- 100% | Mutant Dominant Class ---------------- Mutant | -10/Materials Mutant | -10/Subcaves Resources | -11 -10 -10 ----------- Run | Yrd Mat Sub Matter Collected 374 | 168 181 25 Remotely . | . . . Salvage Created 539 | . 312 227 Parts 29 | . 16 13 Haulers Intercepted 2 | . 2 . Recyclers Shooed . | . . . Parts Field Recycled . | . . . Retrieved Matter . | . . . Parts Self-Destructed 6 | . . 6 Prevented . | . . . Kills | -11 -10 -10 ------- Run | Yrd Mat Sub Combat Hostiles Destroyed 9 | . 2 7 Guns 3 | . 1 2 Cannons 5 | . 1 4 Classes Destroyed 5 | . 3 2 Hauler 2 | . 2 . Recycler 1 | . 1 . Swarmer 4 | . . 4 Grunt 2 | . 2 . Subdweller 3 | . . 3 Best Kill Streak 4 | . 2 4 Combat Bots Only 4 | . 2 4 Max Kills in Single Turn 1 | . 1 1 Gunslinging . | . . . Exploded . | . . . Melee . | . . . Uniques/NPCs Destroyed . | . . . Combat | -11 -10 -10 -------- Run | Yrd Mat Sub Hostile Shots Fired 108 | . 8 100 Missed 49 | . 2 47 Damage Taken 894 | . 83 811 Core 255 | . 15 240 Absorbed by Shields . | . . . Redirected to Shielding 55 | . . 55 Core Remaining (%) 100 | 100 . . Volleys Fired 43 | . 17 26 Largest 2 | . 2 2 Hottest 120 | . 100 120 Shots Fired 81 | . 34 47 Gun 36 | . 26 10 Cannon 45 | . 8 37 Launcher . | . . . Special . | . . . Kinetic 9 | . 9 . Thermal 45 | . 8 37 Explosive . | . . . Electromagnetic 27 | . 17 10 Robot Hit Streak 12 | . 7 12 Robot Miss Streak 2 | . 2 2 Penetration Max . | . . . Secondary Targets . | . . . Shots Hit Robots 57 | . 22 35 Core Hits 17 | . 8 9 Critical Kills 1 | . . 1 Critical Parts Destroyed . | . . . Critical Strikes 1 | . . 1 Meltdown 1 | . . 1 Melee Attacks . | . . . Impact . | . . . Slashing . | . . . Piercing . | . . . Sneak Attacks . | . . . Combat Hostiles . | . . . Follow-up Attacks . | . . . Damage Inflicted 596 | . 285 311 Guns 267 | . 217 50 Cannons 329 | . 68 261 Explosions . | . . . Melee . | . . . Ramming . | . . . Kinetic 42 | . 42 . Thermal 329 | . 68 261 Explosive . | . . . Electromagnetic 225 | . 175 50 Impact . | . . . Slashing . | . . . Piercing . | . . . Highest Corruption . | . . . Average Corruption . | . . . Corruption Purged . | . . . Corruption Blocked . | . . . Overload Shots . | . . . Overflow Damage . | . . . Projectiles . | . . . Explosions . | . . . Melee . | . . . Knockbacks . | . . . Impact . | . . . Kinetic . | . . . Secondary . | . . . Self-Inflicted Damage . | . . . Shots . | . . . Rammed . | . . . Targets Rammed . | . . . Kicked . | . . . Crushed . | . . . Highest Temperature 243 | . 243 42 Average Temperature 59 | . 73 8 Received Heat Transfer 330 | . 48 282 Siege Activations . | . . . Robots Corrupted . | . . . Combat Hostiles . | . . . Parts Fried . | . . . Impact Corruptions . | . . . Robots Melted 1 | . . 1 Combat Hostiles 1 | . . 1 Parts Melted 2 | . . 2 Heat Transferred 703 | . 148 555 Parts Sabotaged . | . . . Parts Stolen . | . . . Parts Stripped . | . . . Power Chain Reactions . | . . . Alert | -11 -10 -10 ------- Run | Yrd Mat Sub Peak Influence 80 | . 80 . Initial . | . . . Average 37 | . 41 . Maximum Alert Level . | . . . Low Security (%) 100 | 100 100 . Level 1 . | . . . Level 2 . | . . . Level 3 . | . . . Level 4 . | . . . Level 5 . | . . . High Security . | . . . Max Security . | . . . Squads Dispatched . | . . . Investigation . | . . . Extermination . | . . . Reinforcement . | . . . Assault . | . . . Garrison . | . . . Intercept . | . . . Searches Triggered . | . . . Construction Impeded . | . . . Haulers Reinforced . | . . . Active Scanning Responses . | . . . Cargo Convoy Interrupts . | . . . Stealth | -11 -10 -10 --------- Run | Yrd Mat Sub Distress Signals . | . . . Communications Jammed . | . . . Distress Signals . | . . . Times Spotted 19 | . 5 14 Peak Tracking Total 6 | . 2 6 Tactical Retreats 2 | . . 2 Traps | -11 -10 -10 ------- Run | Yrd Mat Sub Traps Triggered 2 | . 2 . Indirectly . | . . . Trap Hack Attempts . | . . . Triggered . | . . . Disarmed . | . . . Reprogrammed . | . . . Reused . | . . . Traps Extracted . | . . . Installed . | . . . Triggered . | . . . Machines | -11 -10 -10 ---------- Run | Yrd Mat Sub Machines Disabled 2 | . 2 . Max in Single Turn 1 | . 1 . Machines Repaired . | . . . Machines Dismantled . | . . . Machines Sabotaged . | . . . Overloaded Fab Kills . | . . . Hacking | -11 -10 -10 --------- Run | Yrd Mat Sub Machines Accessed 1 | . 1 . Terminals 1 | . 1 . Fabricators . | . . . Repair Stations . | . . . Recycling Units . | . . . Scanalyzers . | . . . Garrison Access . | . . . Total Hacks 2 | . 2 . Successful . | . . . Failed 2 | . 2 . Catastrophic . | . . . Database Lockouts . | . . . Manual . | . . . Terminals 2 | . 2 . Fabricators . | . . . Repair Stations . | . . . Recycling Units . | . . . Scanalyzers . | . . . Garrison Access . | . . . Terminal Hacks . | . . . Fabricator Hacks . | . . . Repair Station Hacks . | . . . Recycling Unit Hacks . | . . . Scanalyzer . | . . . Garrison Access Hacks . | . . . Unauthorized Hacks . | . . . Terminals . | . . . Fabricators . | . . . Repair Stations . | . . . Recycling Units . | . . . Scanalyzers . | . . . Garrison Access . | . . . Data Cores Recovered . | . . . Used . | . . . Hacking Detections 1 | . 1 . Full Trace Events . | . . . Feedback Events . | . . . Feedback Blocked . | . . . Robot Schematics Acquired . | . . . Robots Built . | . . . Authchips . | . . . Time . | . . . Total Robot Build Rating . | . . . Part Schematics Acquired . | . . . Parts Built . | . . . Authchips . | . . . Time . | . . . Total Part Build Rating . | . . . Parts Repaired . | . . . Time . | . . . Parts Recycled . | . . . Recycled Matter . | . . . Retrieved Matter . | . . . Retrieved Components . | . . . Parts Scanalyzed . | . . . Part Schematics Acquired . | . . . Parts Damaged . | . . . Bothacking | -11 -10 -10 ------------ Run | Yrd Mat Sub Used RIF Installer . | . . . Robots Hacked . | . . . Non-combat . | . . . Combat . | . . . Robot Hacks Applied . | . . . Relay Couplers Released . | . . . Fabnet Peak Effective % . | . . . Robots Rewired . | . . . Allies Hacked . | . . . Hacks Repelled . | . . . Allies | -11 -10 -10 -------- Run | Yrd Mat Sub Total Allies . | . . . Largest Group . | . . . Highest-Rated Group . | . . . Highest-Rated Ally . | . . . Total Orders . | . . . Ally Attacks . | . . . Total Damage . | . . . Kills . | . . . Allies Corrupted . | . . . Allies Melted . | . . . Intel | -11 -10 -10 ------- Run | Yrd Mat Sub Robot Analysis Total . | . . . Derelict Logs Recovered . | . . . Drone Launches . | . . . Drone Recoveries . | . . . Exploration | -11 -10 -10 ------------- Run | Yrd Mat Sub Turns Passed 1129 | 96 904 129 Spaces Moved 458 | 73 361 24 Core 3 | 1 . 2 Treads . | . . . Legs 445 | 62 361 22 Wheels 10 | 10 . . Hover . | . . . Flight . | . . . Fastest Speed 50 | 50 120 190 Average Speed 158 | 113 164 211 Slowest Speed 450 | 120 190 450 Overloaded Moves . | . . . Propulsion Burnouts . | . . . Robots Hopped . | . . . Cave-ins Triggered . | . . . Exploration Rate (%) 17 | 4 45 2 Regions Visited 2 Branch Regions 1 Pre-discovered Areas . | . . . Known Exits Taken . | . . . Unknown Exits Taken 2 | 1 1 . Scrap Searched . | . . . Spaces Dug . | . . . Terrain Destroyed . | . . . Melee . | . . . Projectile . | . . . AOE . | . . . Terrain Rammed . | . . . Walls Destroyed . | . . . Machines Disabled . | . . . Actions | -11 -10 -10 --------- Run | Yrd Mat Sub Total 772 | 82 636 54 Wait 246 | . 245 1 Move 456 | 72 360 24 Hop . | . . . Pick Up 8 | 3 5 . Fast Attach 10 | 5 4 1 Attach 1 | . . 1 Detach . | . . . Swap 7 | 2 4 1 Drop 1 | . 1 . Fire 43 | . 17 26 Melee . | . . . Ram . | . . . Kick . | . . . Crush . | . . . Escape Stasis . | . . . Rewire . | . . . Trap . | . . . Miscellaneous . | . . . Route ------- -11/Scrapyard -10/Materials (discovered 2 exits: [*Mat] / [*Sub]) -10/Subcaves (discovered 1 exit: [*Rec]) History --------- Turn | Location | Event 9 | -11/Scrapyard | Discovered new exit (range 16) 97 | -11/Scrapyard | Entered Materials 314 | -10/Materials | Build established: Mutant 347 | -10/Materials | Discovered new exit (range 16) 973 | -10/Materials | Discovered new exit (range 5) 1001 | -10/Materials | Entered Subcaves 1003 | -10/Subcaves | Discovered new exit (range 11) 1081 | -10/Subcaves | A Subdweller sparked back to life 1081 | -10/Subcaves | A Subdweller sparked back to life 1081 | -10/Subcaves | A Subdweller sparked back to life 1085 | -10/Subcaves | Core integrity fell below 50% 1123 | -10/Subcaves | Core integrity fell below 20% 1130 | -10/Subcaves | Destroyed by JT-8HR(R) with Subdweller Beam Cannon Last Messages --------------- 01066_ Sub. Power Source melted. 01074_ Subatomizers dissect the Sub. Machine Gun. 01075_ Acquired 15 matter. 01081_ 77-TX9(R) creaks and sparks as it begins to move. 01081_ 1S-04G(R) creaks and sparks as it begins to move. 01081_ JT-8HR(R) creaks and sparks as it begins to move. 01084_ Subatomizers dissect the Sub. Machine Gun. 01088_ 77-TX9(R) affixes Scrap Shield Fragment to Scrap Shield. 01090_ 1S-04G(R) destroyed. 01092_ Aluminum Leg destroyed. 01095_ 77-TX9(R) affixes Scrap Shield Fragment to Scrap Shield. 01096_ Subatomizers dissect the Sub. Machine Gun. 01096_ 77-TX9(R) destroyed. 01102_ Aluminum Leg destroyed. 01102_ Beam Cannon destroyed. 01108_ Acquired 10 matter. 01110_ Weapon Shielding destroyed. 01112_ Acquired Sub. Power Source. 01118_ Beam Cannon destroyed. 01124_ EM Shotgun destroyed. Map ----- +----------------------------------------------------+ | ?????????????????????????????????????????????????? | | ?????????????????????????????????????????????????? | | ?????????????????????????????????????????????????? | | ?????????????????????????????????????????????????? | | ?????????????????????????????????????????????????? | | ?????????????????????????????????????????????????? | | ?????????????????????????????????????????????????? | | ?????????????????????????????????????????????????? | | ?????????????????????????????????????????????????? | | ?????????????????????????????????????????????????? | | ?????????????????????????????????????????????????? | | ?????????????????????#???????????????????????????? | | ??????????????????###<####???????????????????????? | | ???????????????????"" """"???????????????????????? | | ??????????????????? " " "#??????????????????????? | | ??????????????????? "???????????????????????? | | ??????????????????? ????????????????????????? | | ???????????????????? ????????????????????????? | | ???????????????????? ?????????????????????????? | | ?????? ????????????? ##????????????????????????? | | ??????? ???#??????? ##???????????????????????? | | ??????? ## #?????# %= #???????????????????????? | | ?????????? ???##% %#????????????????????????? | | ?????????????# ### #######????? #?????????????? | | ?????????????# ##;#;;#??? ??????????????? | | ?????????????# ##!@ %## #????????????????? | | ?????????????# &&%[%< #????????????????? | | ?????????????## ######R!&< #????????????????? | | ??????????????# ##???# = < #???????????????? | | ??????????????#######????## << #?????????????? | | ?????????????????????????? # < #?????????????? | | ?????????????????????????? ##?????????????? | | ????????????????????????? ##??????????????? | | ????????????????????????? ###???????????????? | | ????????????????????????########?????????????????? | | ?????????????????????????????????????????????????? | | ?????????????????????????????????????????????????? | | ?????????????????????????????????????????????????? | | ?????????????????????????????????????????????????? | | ?????????????????????????????????????????????????? | | ?????????????????????????????????????????????????? | | ?????????????????????????????????????????????????? | | ?????????????????????????????????????????????????? | | ?????????????????????????????????????????????????? | | ?????????????????????????????????????????????????? | | ?????????????????????????????????????????????????? | | ?????????????????????????????????????????????????? | | ?????????????????????????????????????????????????? | | ?????????????????????????????????????????????????? | | ?????????????????????????????????????????????????? | +----------------------------------------------------+ Best States ------------- Heat Dissipation 25 Energy Generation 15 Energy Capacity 200 Matter Stores 300 Matter Capacity 300 Sight Range 16 Terrain Scan Density 10 Weapon Shielding 33 Evasion (%) 55 Item Schematics ----------------- None Robot Schematics ------------------ None Fabricated ------------ Nothing Alien Tech Used ----------------- None Achievements -------------- None Challenges ------------ None Game ------ Seed NeutrinoInsulationCapacitor Manual? 0 Play Time 00:07:51 Cumulative 52.5 hours Start 2024.08.15 @ 19:22:37 End 2024.08.15 @ 19:28:44 Sessions 1 Manual Loads 0 Difficulty Rogue Special Mode None Game No. 97 Rogue 97 Adventurer 0 Explorer 0 Win Type - Total 0 Types 0/0/0/0/0/0/0/0/0 Lore% 21 Gallery% 42 Achievement% 34 Wizard Run 0 Options --------- Layout 0 ASCII 0 Keyboard 0 Movement Mouse Keybinds 0 Fullscreen 2 Font 18/SmallcapsGlow Map View 76x50 Zoom Use 0% Tactical HUD 1 Map Filters NONE Filters NONE Steam 1 RUN: a95aee8a-3a73-4287-b386-2fb519ae2015